[Event "DMP-III LIGA Senior PK 2020"]
[Site "Bystre"]
[Date "2020.07.11"]
[Round "6.22"]
[White "Mikula, Michal"]
[Black "Zajac, Karol"]
[Result "1-0"]
[ECO "B23"]
[WhiteElo "1858"]
[BlackElo "1652"]
[Annotator "NA RC"]
[PlyCount "79"]
[EventDate "2020.07.05"]
[EventType "team-tourn"]
[EventCountry "POL"]
[SourceTitle "playchess.com"]
[Source "ChessBase"]
[SourceQuality "1"]
[TimeControl "5400+30"]

1. e4 c5 2. Nc3 Nc6 3. Bb5 g6 4. Bxc6 dxc6 5. f4 Bg7 6. Nf3 {B23: Closed Sicilian: Lines without g3.} Nf6 7. O-O Qc7 8. d3 Bd7 9. Qe1 {[#]} Rd8 $146 ({Predecessor:} 9... b6 10. Kh1 h5 11. Ng5 Ng4 12. e5 Bf5 13. Nce4 Bxe4 14. dxe4 Nh6 15. a4 a5 {1-0 (82) Pridorozhni,A (2510)-Nogin,V (2218) Ekaterinburg 2008}) 10. e5 Nd5 11. Ne4 Qb6 12. c3 (12. Bd2 $16) 12... Bf5 13. Nh4 c4+ 14. d4 (14. Kh1 $5 {[%cal Rd3c4]}) 14... Bxe4 $1 15. Qxe4 f5 (15... c5 $11) 16. exf6 Bxf6 17. f5 g5 18. Nf3 h6 19. Ne5 Bxe5 20. Qxe5 Nf6 21. Re1 O-O 22. h4 Rd5 23. Qe6+ Kg7 24. hxg5 hxg5 25. Bxg5 Rf7 26. Re3 Qxb2 (26... Qc7 $18 27. Rf1 Qd6 28. Bh6+ Kg8) 27. Bxf6+ exf6 28. Rg3+ Kf8 29. Qc8+ Ke7 30. Re1+ Re5 31. dxe5 Qd2 32. exf6+ Kd6 33. Rge3 Kc5 34. Qe6 Rd7 35. f7 Rd5 36. f8=Q+ Kb6 37. Qb4+ Rb5 38. Qbxc4 Rb2 39. Qd4+ Qxd4 40. cxd4 1-0

[Event "DMP-III LIGA Senior PK 2020"]
[Site "Bystre"]
[Date "2020.07.11"]
[Round "6.23"]
[White "Materniak, Aleksander"]
[Black "Sygulski, Piotr"]
[Result "1/2-1/2"]
[ECO "C78"]
[WhiteElo "1660"]
[BlackElo "1652"]
[Annotator "NA RC"]
[PlyCount "94"]
[EventDate "2020.07.05"]
[EventType "team-tourn"]
[EventCountry "POL"]
[SourceTitle "playchess.com"]
[Source "ChessBase"]
[SourceQuality "1"]
[TimeControl "5400+30"]

1. e4 {[%emt 0:00:00]} e5 {[%emt 0:00:00]} 2. Nf3 {[%emt 0:00:00]} Nc6 {[%emt 0:00:00]} 3. Bb5 {[%emt 0:00:00]} a6 {[%emt 0:00:00]} 4. Ba4 {[%emt 0:00:00]} Nf6 {[%emt 0:00:00]} 5. O-O {[%emt 0:00:19]} b5 {[%emt 0:00:07]} 6. Bb3 {[%emt 0:00:04]} Be7 {[%emt 0:00:08]} 7. Re1 {[%emt 0:00:30]} O-O {[%emt 0:00:16]} 8. c3 {[%emt 0:00:18]} d6 {[%emt 0:01:00]} 9. h3 {[%emt 0:00:16]} Na5 {[%emt 0:04:15]} 10. Bc2 {[%emt 0:00:07]} c5 {[%emt 0:02:04]} 11. d4 {[%emt 0:00:13]} Qc7 {[%emt 0:01:49]} 12. Nbd2 {[%emt 0:00:39]} cxd4 {[%emt 0:01:36]} 13. cxd4 {[%emt 0:00:25]} Bb7 {[%emt 0:00:31]} 14. Nf1 {[%emt 0:04:13]} Rac8 {[%emt 0:00:30]} 15. Bd3 {[%emt 0:03:08]} Nd7 {[%emt 0:03:07]} 16. Be3 {[%emt 0:04:55]} Nc4 {[%emt 0:02:00]} 17. Rc1 {[%emt 0:08:45]} Qa5 {[%emt 0:01:34]} 18. Qb3 {[%emt 0:00:43]} Nxe3 {[%emt 0:01:56]} 19. fxe3 {[%emt 0:01:06]} exd4 {[%emt 0:03:02]} 20. exd4 {[%emt 0:00:44]} Qb6 {[%emt 0:00:44]} 21. Kh1 {[%emt 0:09:49]} Rfe8 {[%emt 0:03:10]} 22. Ng3 {[%emt 0:03:24]} Rxc1 {[%emt 0:02:30]} 23. Rxc1 {[%emt 0:00:13]} Bf6 {[%emt 0:00:22]} 24. Rd1 {[%emt 0:13:14]} g6 {[%emt 0:04:20]} 25. Bb1 {[%emt 0:02:08]} Nf8 {[%emt 0:01:22]} 26. Rf1 {[%emt 0:02:17]} Ne6 {[%emt 0:01:49]} 27. a4 {[%emt 0:11:23]} Bxd4 {[%emt 0:04:33]} 28. Nxd4 {[%emt 0:01:46]} Qxd4 {[%emt 0:00:02]} 29. axb5 {[%emt 0:01:59]} Qb6 {[%emt 0:02:21]} 30. Qf3 {[%emt 0:02:23]} Rf8 {[%emt 0:01:24]} 31. Ba2 {[%emt 0:01:40]} Bc8 {[%emt 0:01:18]} 32. bxa6 {[%emt 0:01:53]} Qxa6 {[%emt 0:01:24]} 33. Bd5 {[%emt 0:01:19]} Nd8 {[%emt 0:05:11]} 34. Qf6 {[%emt 0:09:14]} Qa5 {[%emt 0:12:52]} 35. h4 {[%emt 0:08:17]} Qd2 {[%emt 0:02:05]} 36. Qxd6 {[%emt 0:00:37]} Qxb2 {[%emt 0:01:12]} 37. e5 {[%emt 0:03:19]} Be6 {[%emt 0:02:11]} 38. Bxe6 {[%emt 0:01:48]} Nxe6 {[%emt 0:00:01]} 39. Ne4 {[%emt 0:00:42]} Qe2 {[%emt 0:01:43]} 40. Nf6+ {[%emt 0:01:01]} Kg7 {[%emt 0:00:25]} 41. Kg1 {[%emt 0:00:30]} Qe3+ {[%emt 0:00:42]} 42. Kh2 {[%emt 0:01:31]} Rd8 {[%emt 0:01:06]} 43. Qe7 {[%emt 0:01:20]} Qxe5+ {[%emt 0:01:01]} 44. Kh1 {[%emt 0:00:17]} Rf8 {[%emt 0:02:21]} 45. Nd7 {[%emt 0:00:17]} Qc7 {[%emt 0:03:08]} 46. Qf6+ {[%emt 0:00:36]} Kg8 {[%emt 0:00:04]} 47. Nxf8 {[%emt 0:00:40]} Nxf8 {[%emt 0:00:01]} 1/2-1/2

[Event "DMP-III LIGA Senior PK 2020"]
[Site "Bystre"]
[Date "2020.07.11"]
[Round "6.24"]
[White "Zgoda, Aleksandra"]
[Black "Tarsa, Joanna"]
[Result "1-0"]
[ECO "B32"]
[WhiteElo "1203"]
[BlackElo "1574"]
[Annotator "NA RC"]
[PlyCount "75"]
[EventDate "2020.07.05"]
[EventType "team-tourn"]
[EventCountry "POL"]
[SourceTitle "playchess.com"]
[Source "ChessBase"]
[SourceQuality "1"]
[TimeControl "5400+30"]

1. e4 {[%emt 0:00:00]} c5 {[%emt 0:00:00]} 2. Nf3 {[%emt 0:00:00]} Nc6 {[%emt 0:00:00]} 3. d4 {[%emt 0:00:00]} cxd4 {[%emt 0:00:00]} 4. Nxd4 {[%emt 0:00:11]} e5 {[%emt 0:00:00]} 5. Nf3 {[%emt 0:00:50]} d6 {[%emt 0:01:11]} 6. Nc3 {[%emt 0:01:55]} Nf6 {[%emt 0:00:27]} 7. Bg5 {[%emt 0:00:53]} Be7 {[%emt 0:00:21]} 8. Bc4 {[%emt 0:02:01]} O-O {[%emt 0:00:41]} 9. O-O {[%emt 0:01:13]} a6 {[%emt 0:01:24]} 10. a4 {[%emt 0:02:49]} Qc7 {[%emt 0:08:57]} 11. Qd2 {[%emt 0:09:02]} Nb4 {[%emt 0:11:00]} 12. Bb3 {[%emt 0:05:33]} Rd8 {[%emt 0:03:16]} 13. Rad1 {[%emt 0:12:56]} Bg4 {[%emt 0:05:48]} 14. Qe3 {[%emt 0:09:07]} Nh5 {[%emt 0:18:58]} 15. Bxe7 {[%emt 0:08:08]} Qxe7 {[%emt 0:00:36]} 16. h3 {[%emt 0:01:41]} Bxf3 {[%emt 0:00:42]} 17. Qxf3 {[%emt 0:00:27]} Nf4 {[%emt 0:00:36]} 18. Ne2 {[%emt 0:02:36]} Nxe2+ {[%emt 0:02:30]} 19. Qxe2 {[%emt 0:01:33]} Rac8 {[%emt 0:02:38]} 20. c3 {[%emt 0:01:54]} Nc6 {[%emt 0:01:14]} 21. Rd3 {[%emt 0:01:12]} Rc7 {[%emt 0:11:09]} 22. Rg3 {[%emt 0:03:22]} Qf6 {[%emt 0:09:06]} 23. Rd1 {[%emt 0:02:36]} Qh6 {[%emt 0:03:53]} 24. Rdd3 {[%emt 0:03:09]} Ne7 {[%emt 0:01:13]} 25. Rg4 {[%emt 0:02:22]} g6 {[%emt 0:03:48]} 26. Rdg3 {[%emt 0:08:40]} Kf8 {[%emt 0:07:23]} 27. Rf3 {[%emt 0:03:35]} f5 {[%emt 0:01:49]} 28. exf5 {[%emt 0:03:49]} Nxf5 {[%emt 0:00:08]} 29. Rc4 {[%emt 0:02:01]} Rdd7 {[%emt 0:03:35]} 30. g4 {[%emt 0:02:37]} Qg5 {[%emt 0:00:14]} 31. Kh2 {[%emt 0:00:24]} Rxc4 {[%emt 0:01:36]} 32. Qxc4 {[%emt 0:02:57]} d5 {[%emt 0:00:08]} 33. Qc5+ {[%emt 0:00:31]} Ke8 {[%emt 0:00:13]} 34. gxf5 {[%emt 0:00:57]} gxf5 {[%emt 0:00:05]} 35. Rg3 {[%emt 0:01:27]} Qf4 {[%emt 0:00:04]} 36. Bxd5 {[%emt 0:00:39]} h5 {[%emt 0:01:02]} 37. Kg2 {[%emt 0:01:07]} Rxd5 {[%emt 0:02:11]} 38. Qxd5 {[%emt 0:00:35]} 1-0

[Event "DMP-III LIGA Senior PK 2020"]
[Site "Bystre"]
[Date "2020.07.11"]
[Round "6.27"]
[White "Wojciechowski, Beniamin"]
[Black "Futyma, Dawid"]
[Result "1-0"]
[ECO "B12"]
[WhiteElo "1835"]
[BlackElo "1278"]
[Annotator "NA RC"]
[PlyCount "55"]
[EventDate "2020.07.05"]
[EventType "team-tourn"]
[EventCountry "POL"]
[SourceTitle "playchess.com"]
[Source "ChessBase"]
[SourceQuality "1"]
[TimeControl "5400+30"]

{[%evp 20,53,152,32767,31,32767,32767,32767,32767,32767,32767,38,60,-25,268,32767,32767,32767,32767,-27,69,80,66,160,209,236,214,252,257,272,291,288,477,524,479,297]} 1. e4 {[%emt 0:00:00]} c6 {[%emt 0:00:00]} 2. d4 {[%emt 0:00:31]} d5 {[%emt 0:00:19]} 3. e5 {[%emt 0:00:05]} Bf5 {[%emt 0:00:14]} 4. h4 {[%emt 0:00:05]} h6 {[%emt 0:00:37]} 5. g4 {[%emt 0:00:09]} Bh7 {[%emt 0:00:16]} 6. e6 {[%emt 0:02:28]} fxe6 {[%emt 0:02:25]} 7. Bd3 {[%emt 0:00:08]} Bxd3 {[%emt 0:03:16]} 8. Qxd3 {[%emt 0:00:08]} Nf6 {[%emt 0:00:24] B12: Caro-Kann: Advance Variation.} 9. Bf4 {[%emt 0:00:50]} Qb6 {[%emt 0:01:41] [#]} 10. b3 $146 {[%emt 0:10:36]} ({Predecessor:} 10. Nc3 Nbd7 11. O-O-O O-O-O 12. Qg3 c5 13. Nf3 Ne4 14. Nxe4 dxe4 15. dxc5 Qa5 16. Nd4 Qxa2 {1-0 (42) Galaktionov,P (2163)-Bobarykin,D (2226) Bratsk 2013}) 10... Na6 $2 {[%emt 0:04:10]} (10... e5 $11 11. Bxe5 Nbd7) 11. c3 {[%emt 0:19:10]} O-O-O {[%emt 0:03:37]} 12. f3 {[%emt 0:01:36]} c5 {[%emt 0:11:01]} 13. Ne2 {[%emt 0:06:41]} c4 {[%emt 0:01:40]} 14. Qc2 {[%emt 0:01:17]} Qc6 {[%emt 0:03:23]} 15. a4 {[%emt 0:03:15]} e5 {[%emt 0:01:53]} 16. dxe5 {[%emt 0:07:10]} (16. Bxe5 $14 Nd7 17. Bg3) 16... Nxg4 $2 {[%emt 0:01:35]} (16... cxb3 $11 17. Qd2 Nd7) 17. Qf5+ {[%emt 0:04:41]} e6 {[%emt 0:01:49]} 18. Qxg4 {[%emt 0:00:09]} cxb3 {[%emt 0:00:14]} 19. O-O $2 {[%emt 0:11:18]} ({White should play} 19. Be3 $16) 19... Bc5+ {[%emt 0:01:04]} (19... Qc4 $1 $15 20. Qxe6+ Kb8) 20. Kh1 {[%emt 0:03:52]} g5 {[%emt 0:00:35] [#]} 21. Bh2 $1 {[%emt 0:02:25]} gxh4 {[%emt 0:01:41] [#]} 22. Nd2 $1 {[%emt 0:01:10]} b2 {[%emt 0:01:40] [#]} 23. Ra2 $1 {[%emt 0:01:09]} Rdg8 {[%emt 0:01:28]} 24. Qxh4 {[%emt 0:02:38]} Qe8 {[%emt 0:01:33]} 25. Rxb2 {[%emt 0:01:07]} Qg6 $18 {[%emt 0:00:36]} (25... Rg5 {was necessary.} 26. Rfb1 Rh5) 26. Nf4 {[%emt 0:02:51]} Qf5 {[%emt 0:00:43]} 27. Qh3 {[%emt 0:00:23]} Qg5 {[%emt 0:01:45]} 28. Nxe6 {[%emt 0:00:36]} 1-0

[Event "DMP-III LIGA Senior PK 2020"]
[Site "Bystre"]
[Date "2020.07.11"]
[Round "6.28"]
[White "Szaro, Mariusz"]
[Black "Krynicki, Grzegorz"]
[Result "1-0"]
[ECO "D03"]
[WhiteElo "1599"]
[BlackElo "1369"]
[Annotator "NA RC"]
[PlyCount "52"]
[EventDate "2020.07.05"]
[EventType "team-tourn"]
[EventCountry "POL"]
[SourceTitle "playchess.com"]
[Source "ChessBase"]
[SourceQuality "1"]
[TimeControl "5400+30"]

1. d4 {[%emt 0:00:00]} d5 {[%emt 0:00:47]} 2. Nf3 {[%emt 0:00:52]} Nf6 {[%emt 0:00:09]} 3. Bg5 e6 {[%emt 0:00:22]} 4. e3 {[%emt 0:00:29]} Be7 {[%emt 0:00:07]} 5. Bd3 {[%emt 0:00:43]} O-O {[%emt 0:00:23]} 6. Nbd2 {[%emt 0:00:51]} b6 {[%emt 0:00:23]} 7. Qe2 {[%emt 0:00:09]} Nbd7 {[%emt 0:00:40]} 8. Ne5 {[%emt 0:01:29]} Bb7 {[%emt 0:03:33]} 9. Qf3 {[%emt 0:02:26]} c5 {[%emt 0:01:19]} 10. c3 {[%emt 0:00:10]} Qc7 {[%emt 0:01:07]} 11. Nxd7 {[%emt 0:35:49]} Qxd7 {[%emt 0:00:03]} 12. Bxf6 {[%emt 0:00:08]} Bxf6 {[%emt 0:00:14]} 13. Qh3 {[%emt 0:00:04]} h6 {[%emt 0:04:57]} 14. f4 {[%emt 0:01:04]} Be7 {[%emt 0:21:24]} 15. g4 {[%emt 0:05:32]} f5 {[%emt 0:07:21]} 16. gxf5 {[%emt 0:00:24]} exf5 {[%emt 0:00:02]} 17. Nf3 {[%emt 0:00:22]} Qe6 {[%emt 0:21:11]} 18. Ne5 {[%emt 0:00:20]} c4 {[%emt 0:00:28]} 19. Bc2 {[%emt 0:01:10]} b5 {[%emt 0:04:13]} 20. Rg1 {[%emt 0:06:38]} Qf6 {[%emt 0:07:29]} 21. Rg3 {[%emt 0:06:34]} Qh4 {[%emt 0:02:50]} 22. Qg2 {[%emt 0:00:02]} g5 {[%emt 0:00:41]} 23. Ng6 {[%emt 0:01:22]} gxf4 {[%emt 0:20:18]} 24. Nxh4+ {[%emt 0:00:13]} fxg3 {[%emt 0:00:08]} 25. Qxg3+ {[%emt 0:00:16]} Bg5 {[%emt 0:00:02]} 26. Nxf5 {[%emt 0:00:35]} Kh8 {[%emt 0:02:08]} 1-0

[Event "DMP-III LIGA Senior PK 2020"]
[Site "Bystre"]
[Date "2020.07.11"]
[Round "6.28"]
[White "Szaro, Mariusz"]
[Black "Krynicki, Henryk"]
[Result "*"]
[ECO "D03"]
[WhiteElo "1559"]
[BlackElo "1661"]
[Annotator "NA"]
[PlyCount "25"]
[EventDate "2020.07.05"]
[EventType "team-tourn"]
[EventCountry "POL"]
[SourceTitle "playchess.com"]
[Source "ChessBase"]
[SourceQuality "1"]
[TimeControl "5400+30"]

1. d4 {[%emt 0:00:00]} d5 {[%emt 0:00:47]} 2. Nf3 {[%emt 0:00:52]} Nf6 {[%emt 0:00:09]} 3. Bg5 e6 {[%emt 0:00:22]} 4. e3 {[%emt 0:00:29]} Be7 {[%emt 0:00:07]} 5. Bd3 {[%emt 0:00:43]} O-O {[%emt 0:00:23]} 6. Nbd2 {[%emt 0:00:51]} b6 {[%emt 0:00:23]} 7. Qe2 {[%emt 0:00:09]} Nbd7 {[%emt 0:00:40]} 8. Ne5 {[%emt 0:01:29]} Bb7 {[%emt 0:03:33]} 9. Qf3 {[%emt 0:02:26]} c5 {[%emt 0:01:19]} 10. c3 {[%emt 0:00:10]} Qc7 {[%emt 0:01:07]} 11. Nxd7 {[%emt 0:35:49]} Qxd7 {[%emt 0:00:03]} 12. Bxf6 {[%emt 0:00:08]} Bxf6 {[%emt 0:00:14]} 13. Qh3 {[%emt 0:00:04]} *

[Event "DMP-III LIGA Senior PK 2020"]
[Site "Bystre"]
[Date "2020.07.11"]
[Round "6.30"]
[White "Kruczek, Aleksandra"]
[Black "Krzysztynska, Anna"]
[Result "0-1"]
[ECO "A43"]
[WhiteElo "1038"]
[BlackElo "1857"]
[Annotator "NA RC"]
[PlyCount "160"]
[EventDate "2020.07.05"]
[EventType "team-tourn"]
[EventCountry "POL"]
[SourceTitle "playchess.com"]
[Source "ChessBase"]
[SourceQuality "1"]
[TimeControl "5400+30"]

{[%evp 16,156,-11,32767,-58,-47,-45,32767,32767,32767,-76,32767,32767,32767,32767,32767,-29,-50,-31,-82,32767,32767,32767,32767,32767,-94,-85,-103,-78,-128,-96,-95,-85,-106,32767,32767,32767,32767,32767,32767,32767,32767,32767,-102,32767,32767,32767,32767,32767,32767,32767,46,75,75,77,36,32767,32767,0,0,15,9,29971,-6,-9,-5,-4,-25,-8,0,0,-14,32767,32767,32767,32767,32767,0,0,-189,-131,-185,-187,-195,-206,-361,-300,-250,0,0,32767,32767,32767,32767,0,-13,-8,-25,0,-8,0,0,-8,-89,-31,-430,-580,32767,32767,32767,32767,32767,32767,32767,32767,32767,-29966,-4129,-5125,-4837,-4137,32767,32767,32767,32767,32767,32767,32767,32767,32767,32767,32767,32767,32767,-29992,-29992,-29991,-29995,-29996,-29996,-27999,-29997,-29998]} 1. d4 {[%emt 0:00:00]} c5 {[%emt 0:00:00]} 2. Bf4 {[%emt 0:04:17]} cxd4 {[%emt 0:01:25]} 3. Qxd4 {[%emt 0:00:28]} Nc6 {[%emt 0:00:17]} 4. Qd2 {[%emt 0:02:04]} e5 {[%emt 0:00:54]} 5. Bg3 {[%emt 0:03:50] [#]} d5 $146 {[%emt 0:01:59]} ({Predecessor:} 5... Nf6 6. Nc3 d5 7. e3 a6 8. Nf3 e4 9. Nd4 Bb4 10. a3 Be7 11. Be2 O-O {½-½ (25) Doman,C (1856)-Jager,L Hungary 2007}) 6. e4 {[%emt 0:02:49] A43: Schmid Benoni.} d4 {[%emt 0:06:29]} 7. Bb5 {[%emt 0:01:20]} f6 {[%emt 0:08:31]} 8. Ne2 {[%emt 0:03:02]} Qb6 {[%emt 0:03:42]} 9. a4 {[%emt 0:05:50]} a6 {[%emt 0:01:25]} 10. Bxc6+ $1 {[%emt 0:04:43]} bxc6 {[%emt 0:00:15]} 11. b3 {[%emt 0:07:23]} Nh6 {[%emt 0:03:43]} 12. h3 {[%emt 0:01:56]} Be6 {[%emt 0:01:02]} 13. a5 {[%emt 0:04:25]} Qb7 {[%emt 0:00:54]} 14. Qd3 {[%emt 0:02:29]} Be7 {[%emt 0:02:36]} 15. O-O {[%emt 0:01:17]} O-O {[%emt 0:01:27]} 16. Nd2 {[%emt 0:02:00]} Qb5 {[%emt 0:01:51]} 17. Rfc1 {[%emt 0:05:35]} Rab8 {[%emt 0:04:23]} 18. Nxd4 {[%emt 0:01:28]} exd4 {[%emt 0:01:14]} 19. Bxb8 {[%emt 0:00:23]} Rxb8 {[%emt 0:01:17]} 20. Qxd4 {[%emt 0:03:24]} Rd8 {[%emt 0:01:20]} 21. Qe3 {[%emt 0:07:50]} Bc5 {[%emt 0:02:15]} 22. Qf4 {[%emt 0:05:49]} Bd4 {[%emt 0:05:36]} 23. c3 {[%emt 0:05:38]} Be5 {[%emt 0:01:42]} 24. Qe3 {[%emt 0:01:14]} Qd3 {[%emt 0:03:41]} 25. Nf3 {[%emt 0:08:37]} Qxe3 {[%emt 0:05:18]} 26. fxe3 {[%emt 0:00:18]} Bxb3 {[%emt 0:01:10]} 27. Rab1 {[%emt 0:00:53]} Bc4 {[%emt 0:00:33]} 28. Rb4 {[%emt 0:01:55]} Be2 {[%emt 0:08:31]} 29. Rb6 {[%emt 0:01:45]} (29. Nxe5 $11 fxe5 30. Rb2) 29... c5 {[%emt 0:08:50]} 30. Nxe5 {[%emt 0:01:16]} fxe5 {[%emt 0:00:01]} 31. c4 {[%emt 0:00:33]} Ra8 {[%emt 0:00:38]} 32. Rc6 {[%emt 0:00:57]} Nf7 {[%emt 0:00:35]} 33. Rxc5 {[%emt 0:02:15]} Bd3 {[%emt 0:00:30]} 34. Rd1 {[%emt 0:02:55]} Bxe4 {[%emt 0:03:05]} 35. Rc7 {[%emt 0:00:35]} Bf5 {[%emt 0:01:14]} 36. c5 {[%emt 0:01:10]} Kf8 {[%emt 0:02:47]} 37. Rf1 {[%emt 0:00:58]} Be6 {[%emt 0:00:58]} 38. c6 {[%emt 0:00:41]} Rc8 $2 {[%emt 0:01:28] [#]} (38... Re8 $11) 39. Rxc8+ $2 {[%emt 0:02:14]} (39. Rfxf7+ $1 {[%mdl 512] mates} Kg8 (39... Bxf7 40. Rxc8+) 40. Rxg7+ {[%mdl 64] Double Attack} Kf8 {[#]} 41. Rgf7+ $3 {[%mdl 512]} Kg8 42. Rxh7 Re8 43. Rcg7+ Kf8 44. Rh8+ Kxg7 45. Rxe8) 39... Bxc8 {[%emt 0:00:02]} 40. Rd1 {[%emt 0:01:37]} Ke7 {[%emt 0:00:26]} 41. Rb1 {[%emt 0:01:28]} Kd6 {[%emt 0:00:51]} 42. Rb8 $1 {[%emt 0:00:58]} Kc7 {[%emt 0:00:12]} 43. Ra8 {[%emt 0:00:12]} Nd6 {[%emt 0:02:12]} 44. Ra7+ {[%emt 0:00:11]} Kxc6 {[%emt 0:00:04]} 45. Rxg7 {[%emt 0:00:05]} Bf5 {[%emt 0:01:08]} 46. g4 {[%emt 0:00:20]} Be4 {[%emt 0:01:42]} 47. Ra7 $2 {[%emt 0:00:27]} (47. h4 $11) 47... Kb5 {[%emt 0:00:21]} 48. Re7 {[%emt 0:00:20]} Nc4 {[%emt 0:00:39]} 49. h4 {[%emt 0:00:31]} Kxa5 {[%emt 0:01:08]} 50. g5 {[%emt 0:00:53]} Kb4 {[%emt 0:02:24]} 51. h5 {[%emt 0:00:45]} Nd2 $2 {[%emt 0:03:06]} (51... a5 $19 52. g6 hxg6) 52. g6 {[%emt 0:00:38]} hxg6 {[%emt 0:00:20]} 53. h6 {[%emt 0:00:06]} g5 {[%emt 0:01:50]} 54. Kf2 {[%emt 0:00:42]} Nc4 {[%emt 0:00:56]} 55. Kg3 {[%emt 0:00:26]} a5 {[%emt 0:01:43]} 56. Rb7+ {[%emt 0:00:46]} Kc3 {[%emt 0:01:01]} 57. Ra7 {[%emt 0:00:28]} Kd3 {[%emt 0:01:18]} 58. Kf2 {[%emt 0:00:57]} g4 {[%emt 0:00:39]} ({Don't go for} 58... Nxe3 $2 59. Rd7+ Kc4 60. Kxe3 $18) 59. Rd7+ {[%emt 0:00:19]} (59. Kg3 $11) 59... Kc3 {[%emt 0:00:49]} 60. Rg7 $2 {[%emt 0:00:21] [#]} (60. Ra7 $17 {was the crucial defense.}) 60... a4 $1 {[%emt 0:01:50]} 61. Rxg4 {[%emt 0:00:38]} Bf5 {[%emt 0:00:33]} 62. Rg5 {[%emt 0:00:15]} Bc2 {[%emt 0:00:33]} 63. Rg1 {[%emt 0:00:43]} a3 {[%emt 0:01:27]} 64. Kf3 {[%emt 0:00:41]} Nd2+ {[%emt 0:00:21]} 65. Ke2 {[%emt 0:00:20]} Bd3+ {[%emt 0:00:59]} 66. Kf2 {[%emt 0:00:17]} Ne4+ {[%emt 0:00:37]} 67. Kf3 {[%emt 0:00:13]} Nf6 {[%emt 0:00:22]} 68. Ra1 {[%emt 0:00:54]} Kb2 {[%emt 0:00:12]} 69. Rxa3 {[%emt 0:00:06]} Kxa3 {[%emt 0:00:06]} 70. Kf2 {[%emt 0:00:38]} Ng4+ {[%emt 0:00:06]} 71. Ke1 {[%emt 0:00:13]} Nxh6 {[%emt 0:00:11]} 72. Kd2 {[%emt 0:00:08]} e4 {[%emt 0:00:10]} 73. Ke1 {[%emt 0:00:18]} Ng4 {[%emt 0:00:12]} 74. Kd2 {[%emt 0:00:13]} Kb3 {[%emt 0:00:40]} 75. Ke1 {[%emt 0:00:27]} Nxe3 {[%emt 0:00:26]} 76. Kd2 {[%emt 0:00:13]} Ng2 {[%emt 0:00:50]} 77. Kd1 {[%emt 0:00:16]} e3 {[%emt 0:01:02]} 78. Kc1 {[%emt 0:00:24]} e2 {[%emt 0:00:20]} 79. Kd2 {[%emt 0:00:28]} e1=Q+ {[%emt 0:00:08]} 80. Kxd3 {[%emt 0:00:19]} Qe3# {[%emt 0:00:10]} 0-1

[Event "DMP-III LIGA Senior PK 2020"]
[Site "Bystre"]
[Date "2020.07.11"]
[Round "7.3"]
[White "Szaro, Mariusz"]
[Black "Stefanski, Adam"]
[Result "0-1"]
[ECO "A46"]
[WhiteElo "1559"]
[BlackElo "1387"]
[Annotator "NA RC"]
[PlyCount "104"]
[EventDate "2020.07.05"]
[EventType "team-tourn"]
[EventCountry "POL"]
[SourceTitle "playchess.com"]
[Source "ChessBase"]
[SourceQuality "1"]
[TimeControl "5400+30"]

1. d4 {[%emt 0:00:00]} Nf6 {[%emt 0:00:22]} 2. Nf3 {[%emt 0:00:41]} e6 {[%emt 0:00:08]} 3. Bg5 {[%emt 0:00:13]} d5 {[%emt 0:01:11]} 4. e3 {[%emt 0:00:24]} c5 {[%emt 0:02:17]} 5. c3 {[%emt 0:00:16]} Nc6 {[%emt 0:01:14]} 6. Nbd2 {[%emt 0:00:55]} cxd4 {[%emt 0:04:19]} 7. exd4 {[%emt 0:00:42]} h6 {[%emt 0:00:57]} 8. Bh4 {[%emt 0:00:54]} Be7 {[%emt 0:02:32]} 9. Bd3 {[%emt 0:00:28]} Qc7 {[%emt 0:01:58]} 10. Qe2 {[%emt 0:00:46]} Nh5 {[%emt 0:11:07]} 11. Bxe7 {[%emt 0:04:42]} Nf4 {[%emt 0:04:39]} 12. Qf1 {[%emt 0:00:15]} Nxd3+ {[%emt 0:01:34]} 13. Qxd3 {[%emt 0:00:02]} Nxe7 {[%emt 0:00:59]} 14. O-O {[%emt 0:02:05]} Bd7 {[%emt 0:01:21]} 15. Ne5 {[%emt 0:00:49]} a6 {[%emt 0:01:55]} 16. Qf3 {[%emt 0:01:53]} Nf5 {[%emt 0:08:59]} 17. g4 {[%emt 0:02:48]} Nd6 {[%emt 0:02:42]} 18. a4 {[%emt 0:12:21]} Bc6 {[%emt 0:08:08]} 19. Qd3 {[%emt 0:04:24]} Qe7 {[%emt 0:16:45]} 20. Nxc6 {[%emt 0:03:17]} bxc6 {[%emt 0:00:02]} 21. Qg3 {[%emt 0:01:31]} h5 {[%emt 0:05:24]} 22. Rfe1 {[%emt 0:19:23]} hxg4 {[%emt 0:01:18]} 23. Qxg4 {[%emt 0:01:08]} Rh6 {[%emt 0:02:31]} 24. Qf4 {[%emt 0:03:39]} Rf6 {[%emt 0:10:03]} 25. Qh4 {[%emt 0:03:35]} Rg6+ {[%emt 0:00:11]} 26. Qg3 {[%emt 0:00:15]} Rxg3+ {[%emt 0:00:07]} 27. fxg3 {[%emt 0:00:23]} Nf5 {[%emt 0:03:32]} 28. Nf3 {[%emt 0:00:34]} c5 {[%emt 0:00:45]} 29. Re5 {[%emt 0:02:14]} cxd4 {[%emt 0:01:30]} 30. Rxf5 {[%emt 0:00:02]} exf5 {[%emt 0:02:04]} 31. Re1 {[%emt 0:00:45]} Qxe1+ {[%emt 0:00:58]} 32. Nxe1 {[%emt 0:00:01]} dxc3 {[%emt 0:00:32]} 33. bxc3 {[%emt 0:00:01]} Rc8 {[%emt 0:01:09]} 34. Nc2 {[%emt 0:04:11]} Rxc3 {[%emt 0:00:49]} 35. Nb4 {[%emt 0:00:45]} d4 {[%emt 0:00:29]} 36. Kf2 {[%emt 0:00:49]} Ra3 {[%emt 0:00:46]} 37. Nxa6 {[%emt 0:00:15]} Rxa4 {[%emt 0:00:19]} 38. Nc5 {[%emt 0:00:01]} Ra3 {[%emt 0:00:30]} 39. Ke2 {[%emt 0:00:24]} Ke7 {[%emt 0:00:33]} 40. Nd3 {[%emt 0:00:14]} Ra2+ {[%emt 0:01:08]} 41. Kf3 {[%emt 0:00:08]} Rxh2 {[%emt 0:00:19]} 42. Kf4 {[%emt 0:00:13]} Kf6 {[%emt 0:01:05]} 43. Kf3 {[%emt 0:00:45]} Rc2 {[%emt 0:00:44]} 44. Nf4 {[%emt 0:00:21]} g5 {[%emt 0:00:27]} 45. Nd5+ {[%emt 0:00:18]} Ke6 {[%emt 0:00:16]} 46. Nb4 {[%emt 0:00:12]} Rc3+ {[%emt 0:00:05]} 47. Kf2 {[%emt 0:00:11]} Ke5 {[%emt 0:00:15]} 48. Ke2 {[%emt 0:00:56]} Ke4 {[%emt 0:00:19]} 49. Kd2 {[%emt 0:00:48]} Rxg3 {[%emt 0:00:19]} 50. Na6 {[%emt 0:00:22]} Rg2+ {[%emt 0:00:17]} 51. Kd1 {[%emt 0:00:07]} Ke3 {[%emt 0:00:21]} 52. Nc5 {[%emt 0:00:06]} d3 {[%emt 0:00:28]} 0-1